Cogmind - Beta 15 @@@ ROGUE MODE // 2025.05.12 @ 17:03:44 Player: Phosphophyllite Result: Self-destructed Performance ------------- Evolutions (0) 0 Regions Visited (4) 800 Robots Destroyed (11) 55 Value Destroyed (172) 172 Prototype IDs (23) 460 Alien Tech Used (0) 0 Bonus (453) 453 TOTAL SCORE: 1940 Bonus ------- Follower Combat Kills 166 Aligned with FarCom 300 Friendly Fire -13 Cogmind --------- Core Integrity 69/250 Matter 175/300 Energy 100/100 System Corruption 0% Temperature Cool (0) Movement Core (400) Ox7 Location -9/Mines Parts ------- > --- POWER (1) -------- (None) > --- PROPULSION (2) --- (None) > --- UTILITY (2) ------ Large Storage Unit > --- WEAPON (2) ------- Light Cannon > --- INVENTORY (15) --- Improved Ion Engine Aluminum Leg Aluminum Leg Flight Unit Scrap Suit Faulty Experimental Sensor Array Light Armor Plating AWS/Gauss Light Cannon Peak State ------------ > --- POWER ------------ Improved Ion Engine > --- PROPULSION ------- Light Treads Light Treads > --- UTILITY ---------- Large Storage Unit Seismic Detector > --- WEAPON ----------- Light Cannon Light Cannon > --- INVENTORY -------- Improved Ion Engine Aluminum Leg Aluminum Leg Flight Unit Scrap Suit Experimental Sensor Array Light Armor Plating AWS/Gauss Grenade Launcher [Rating: 12] Favorites ----------- Power Ion Engine Engine Ion Engine Propulsion Light Treads Treads Light Treads Utility Seismic Detector Device Seismic Detector Storage Small Storage Unit Weapon Light Cannon Energy Gun Particle Gun Ballistic Gun Assault Rifle Ballistic Cannon Light Cannon Launcher Grenade Launcher Build | -11 -10 -10 -10 -9 ------- Run | Yrd Mat Min Exi Min Slots Evolved . | . . . . . Power . | . . . . . Propulsion . | . . . . . Utility . | . . . . . Weapon . | . . . . . Parts Attached 13 | 7 1 3 1 1 Power 2 | 1 . 1 . . Engine 2 | 1 . 1 . . Core . | . . . . . Reactor . | . . . . . Propulsion 2 | 2 . . . . Treads 2 | 2 . . . . Leg . | . . . . . Wheel . | . . . . . Hover . | . . . . . Flight . | . . . . . Utility 3 | 2 . . 1 . Device 1 | 1 . . . . Storage 2 | 1 . . 1 . Processor . | . . . . . Hackware . | . . . . . Protection . | . . . . . Artifact . | . . . . . Weapon 6 | 2 1 2 . 1 Energy Gun 1 | . . 1 . . Energy Cannon . | . . . . . Ballistic Gun 2 | 2 . . . . Ballistic Cannon 2 | . 1 1 . . Launcher 1 | . . . . 1 Special Weapon . | . . . . . Impact Weapon . | . . . . . Slashing Weapon . | . . . . . Piercing Weapon . | . . . . . Special Melee Weapon . | . . . . . Unidentified Prototypes . | . . . . . Parts Lost 5 | . . . . 5 Power 1 | . . . . 1 Propulsion 2 | . . . . 2 Utility 1 | . . . . 1 Weapon 1 | . . . . 1 Highest Loss Streak 5 | . . . . 5 To Critical Strikes . | . . . . . Average Backups 7 | 3 6 7 7 8 Power . | . 1 . 1 1 Propulsion 2 | 1 2 2 2 2 Utility 2 | . 2 3 3 3 Weapon 1 | . 1 1 1 2 Tool/Special . | . . . . . Unused Backups 12 | . . 4 . 8 Power 2 | . . 1 . 1 Propulsion 3 | . . . . 3 Utility 5 | . . 2 . 3 Weapon 2 | . . 1 . 1 Tool/Special . | . . . . . Average Slot Usage (%) 99 | . 100 100 100 98 Engine 13 | . 14 14 14 13 Treads 27 | . 28 28 28 27 Device 13 | . 14 14 14 13 Storage 14 | . 14 14 14 14 Ballistic Gun 9 | . 15 18 . . Ballistic Cannon 17 | . 12 8 28 26 Peak Build Rating 12 | 7 7 11 11 12 Average Rating 9 | 5 7 9 10 11 On Entrance 7 | . 7 7 10 11 Naked Turns . | . . . . . Heaviest Build 34 | 15 16 19 34 34 Greatest Support 40 | 40 40 40 40 40 Greatest Overweight (x) 1 | . . . . 1 Average Overweight (x) . | . . . . . Largest Inventory Capacity 15 | 8 8 8 15 15 Average Capacity 9 | 7 8 8 10 15 Most Carried 11 | 6 7 8 10 11 Average Carried 7 | 4 6 7 8 10 Final Capacity 15 | 8 8 8 15 15 Final Carried 11 | 6 7 8 10 11 Class Distribution -------------------- 100% | Mutant Dominant Class ---------------- Mutant | -10/Materials Mutant | -10/Mines Mutant | -10/Exiles Mutant | -9/Mines Resources | -11 -10 -10 -10 -9 ----------- Run | Yrd Mat Min Exi Min Matter Collected 475 | 269 77 119 . 10 Remotely . | . . . . . Salvage Created 304 | 91 88 93 . 32 Parts 26 | 5 12 6 . 3 Haulers Intercepted . | . . . . . Recyclers Shooed . | . . . . . Parts Field Recycled . | . . . . . Retrieved Matter . | . . . . . Parts Self-Destructed . | . . . . . Prevented . | . . . . . Kills | -11 -10 -10 -10 -9 ------- Run | Yrd Mat Min Exi Min Combat Hostiles Destroyed 13 | . 6 2 . 5 Guns 6 | . 5 1 . . Cannons 2 | . 1 1 . . AOE 5 | . . . . 5 Classes Destroyed 6 | 2 1 1 . 2 Builder 1 | . . . . 1 Tunneler 1 | 1 . . . . Recycler 1 | 1 . . . . Swarmer 6 | . 6 . . . Grunt 2 | . . 2 . . Assembled 5 | . . . . 5 Best Kill Streak 6 | 2 3 1 . 6 Combat Bots Only 5 | . 3 1 . 5 Max Kills in Single Turn 2 | 1 2 1 . 2 Gunslinging . | . . . . . Exploded 2 | . . . . 2 Melee . | . . . . . Uniques/NPCs Destroyed . | . . . . . Combat | -11 -10 -10 -10 -9 -------- Run | Yrd Mat Min Exi Min Hostile Shots Fired 48 | . 12 10 . 26 Missed 9 | . 2 3 . 4 Hits 39 | . 10 7 . 22 Projectile 39 | . 10 7 . 22 AOE 15 | . . . . 15 Critical Strikes 2 | . . 1 . 1 Damage Taken 962 | . 86 113 . 763 Core 181 | . 7 25 . 149 Absorbed by Shields . | . . . . . Core Remaining (%) 100 | 100 . . . . Volleys Fired 35 | 5 7 10 . 13 Largest 2 | 2 2 2 . 2 Hottest 95 | 40 50 95 . 60 Shots Fired 62 | 10 14 20 . 18 Gun 36 | 10 11 15 . . Cannon 18 | . 3 5 . 10 Launcher 8 | . . . . 8 Special . | . . . . . Kinetic 49 | 10 14 15 . 10 Thermal 5 | . . 5 . . Explosive 8 | . . . . 8 Electromagnetic . | . . . . . Robot Hit Streak 4 | 4 4 3 . 4 Robot Miss Streak 5 | 2 2 4 . 5 Penetration Max . | . . . . . Secondary Targets . | . . . . . Shots Hit Robots 26 | 5 6 11 . 4 Core Hits 30 | 2 6 4 . 18 Critical Kills 1 | 1 . . . . Critical Parts Destroyed . | . . . . . Critical Strikes 2 | 1 . . . 1 Destroy 1 | 1 . . . . Blast 1 | . . . . 1 Melee Attacks . | . . . . . Impact . | . . . . . Slashing . | . . . . . Piercing . | . . . . . Sneak Attacks . | . . . . . Combat Hostiles . | . . . . . Follow-up Attacks . | . . . . . Damage Inflicted 723 | 63 93 178 . 389 Guns 229 | 63 74 92 . . Cannons 141 | . 19 86 . 36 Explosions 353 | . . . . 353 Melee . | . . . . . Ramming . | . . . . . Kinetic 341 | 63 93 149 . 36 Thermal 29 | . . 29 . . Explosive 353 | . . . . 353 Electromagnetic . | . . . . . Impact . | . . . . . Slashing . | . . . . . Piercing . | . . . . . Highest Corruption . | . . . . . Average Corruption . | . . . . . Corruption Purged . | . . . . . Corruption Blocked . | . . . . . Overload Shots . | . . . . . Overflow Damage 43 | . . . . 43 Projectiles . | . . . . . Explosions 43 | . . . . 43 Melee . | . . . . . Knockbacks 2 | . . 1 . 1 Impact . | . . . . . Kinetic 2 | . . 1 . 1 Secondary . | . . . . . Self-Inflicted Damage 45 | . . . . 45 Shots 2 | . . . . 2 Rammed . | . . . . . Targets Rammed . | . . . . . Kicked . | . . . . . Crushed . | . . . . . Highest Temperature 117 | . . 117 . 49 Average Temperature 44 | . . 56 . 25 Received Heat Transfer 204 | . . 84 . 120 Siege Activations . | . . . . . Martial Activations . | . . . . . Shielding Activations . | . . . . . Robots Disrupted . | . . . . . Combat Hostiles . | . . . . . Robots Corrupted . | . . . . . Combat Hostiles . | . . . . . Parts Fried . | . . . . . Impact Corruptions . | . . . . . Robots Melted . | . . . . . Combat Hostiles . | . . . . . Parts Melted . | . . . . . Heat Transferred 74 | . . 74 . . Parts Sabotaged . | . . . . . Parts Stolen . | . . . . . Parts Stripped . | . . . . . Power Chain Reactions . | . . . . . Alert | -11 -10 -10 -10 -9 ------- Run | Yrd Mat Min Exi Min Maximum Alert Level . | . . . . . Low Security (%) 100 | 100 100 100 . 100 Level 1 . | . . . . . Level 2 . | . . . . . Level 3 . | . . . . . Level 4 . | . . . . . Level 5 . | . . . . . High Security . | . . . . . Max Security . | . . . . . Peak Influence 142 | 5 71 142 . 17 Initial 8 | . . 8 . . Average 18 | . 12 30 . . Influence Increases 423 | 10 141 232 . 40 Destroy 0b10 Robot/C 280 | . 120 160 . . Destroy 0b10 Robot/NC 15 | 10 . . . 5 Destroy Leader 40 | . 20 20 . . Allied During Kill 22 | . . 22 . . Destroy Structure 36 | . 1 . . 35 Lose Combat Pursuer 30 | . . 30 . . Influence Decreases 423 | 10 119 178 76 40 Entered New Map 90 | . . 14 76 . Time Decay 263 | 10 119 124 . 10 Lost Part 13 | . . . . 13 Lost Ally 57 | . . 40 . 17 Squads Dispatched 2 | . 1 1 . . Investigation 1 | . 1 . . . Extermination . | . . . . . Reinforcement . | . . . . . Assault 1 | . . 1 . . Garrison . | . . . . . Intercept . | . . . . . Searches Triggered . | . . . . . Construction Impeded . | . . . . . Haulers Reinforced . | . . . . . Active Scanning Responses . | . . . . . Cargo Convoy Interrupts . | . . . . . Stealth | -11 -10 -10 -10 -9 --------- Run | Yrd Mat Min Exi Min Distress Signals 1 | . 1 . . . Communications Jammed . | . . . . . Distress Signals . | . . . . . Times Spotted 42 | . 10 11 . 21 Peak Tracking Total 12 | . 3 4 . 12 Tactical Retreats 1 | . . 1 . . Traps | -11 -10 -10 -10 -9 ------- Run | Yrd Mat Min Exi Min Traps Triggered 1 | . 1 . . . Indirectly . | . . . . . Trap Hack Attempts . | . . . . . Triggered . | . . . . . Disarmed . | . . . . . Reprogrammed . | . . . . . Reused . | . . . . . Traps Extracted . | . . . . . Installed . | . . . . . Triggered . | . . . . . Machines | -11 -10 -10 -10 -9 ---------- Run | Yrd Mat Min Exi Min Machines Disabled . | . . . . . Max in Single Turn . | . . . . . Machines Repaired . | . . . . . Machines Dismantled . | . . . . . Machines Sabotaged . | . . . . . Overloaded Fab Kills . | . . . . . Hacking | -11 -10 -10 -10 -9 --------- Run | Yrd Mat Min Exi Min Machines Accessed 7 | . 2 . 5 . Terminals 2 | . 2 . . . Fabricators . | . . . . . Repair Stations . | . . . . . Recycling Units . | . . . . . Scanalyzers . | . . . . . Garrison Access . | . . . . . Total Hacks 20 | . 5 . 15 . Successful 17 | . 2 . 15 . Failed 3 | . 3 . . . Catastrophic 2 | . 2 . . . Database Lockouts . | . . . . . Manual 6 | . 5 . 1 . Terminals 5 | . 5 . . . Fabricators . | . . . . . Repair Stations . | . . . . . Recycling Units . | . . . . . Scanalyzers . | . . . . . Garrison Access . | . . . . . Terminal Hacks 16 | . 1 . 15 . Record 14 | . . . 14 . Branch Access Points 1 | . 1 . . . Proto ID Catalog 1 | . . . 1 . Fabricator Hacks . | . . . . . Repair Station Hacks . | . . . . . Recycling Unit Hacks . | . . . . . Scanalyzer . | . . . . . Garrison Access Hacks . | . . . . . Unauthorized Hacks 1 | . 1 . . . Terminals 1 | . 1 . . . Botnet 1 | . 1 . . . Fabricators . | . . . . . Repair Stations . | . . . . . Recycling Units . | . . . . . Scanalyzers . | . . . . . Garrison Access . | . . . . . Data Cores Recovered . | . . . . . Used . | . . . . . Hacking Detections 1 | . 1 . . . Full Trace Events . | . . . . . Feedback Events . | . . . . . Feedback Blocked . | . . . . . Robot Schematics Acquired . | . . . . . Robots Built . | . . . . . Authchips . | . . . . . Time . | . . . . . Total Robot Build Rating . | . . . . . Part Schematics Acquired . | . . . . . Parts Built . | . . . . . Authchips . | . . . . . Time . | . . . . . Total Part Build Rating . | . . . . . Parts Repaired . | . . . . . Time . | . . . . . Parts Recycled . | . . . . . Recycled Matter . | . . . . . Retrieved Matter . | . . . . . Retrieved Components . | . . . . . Parts Scanalyzed . | . . . . . Part Schematics Acquired . | . . . . . Parts Damaged . | . . . . . Bothacking | -11 -10 -10 -10 -9 ------------ Run | Yrd Mat Min Exi Min Used RIF Installer . | . . . . . Robots Hacked . | . . . . . Non-combat . | . . . . . Combat . | . . . . . Robot Hacks Applied . | . . . . . Relay Couplers Released . | . . . . . Fabnet Peak Effective % . | . . . . . Robots Rewired . | . . . . . Allies Hacked . | . . . . . Hacks Repelled . | . . . . . Allies | -11 -10 -10 -10 -9 -------- Run | Yrd Mat Min Exi Min Total Allies 3 | . . 3 . . Largest Group 3 | . . 3 1 1 Highest-Rated Group 69 | . . 69 31 31 Highest-Rated Ally 31 | . . 31 31 31 Total Orders . | . . . . . Ally Attacks 34 | . . 24 . 10 Total Damage 535 | . . 381 . 154 Kills 8 | . . 6 . 2 Allies Corrupted . | . . . . . Allies Melted . | . . . . . Intel | -11 -10 -10 -10 -9 ------- Run | Yrd Mat Min Exi Min Active Infowar (turns) 3179 | 39 739 1076 977 348 Seismic 3179 | 39 739 1076 977 348 Robot Analysis Total . | . . . . . Derelict Logs Recovered 2 | . . 1 . 1 Drone Launches . | . . . . . Drone Recoveries . | . . . . . Exploration | -11 -10 -10 -10 -9 ------------- Run | Yrd Mat Min Exi Min Turns Passed 3272 | 121 739 1076 977 359 Spaces Moved 1634 | 59 141 624 609 201 Core 4 | 4 . . . . Treads 1630 | 55 141 624 609 201 Legs . | . . . . . Wheels . | . . . . . Hover . | . . . . . Flight . | . . . . . Fastest Speed 50 | 50 160 160 160 160 Average Speed 159 | 152 160 160 160 160 Slowest Speed 240 | 160 160 160 160 240 Overloaded Moves . | . . . . . Propulsion Burnouts . | . . . . . Robots Hopped . | . . . . . Potential Cave-ins . | . . . . . Cave-ins Triggered . | . . . . . Exploration Rate (%) 51 | 4 29 96 72 58 Regions Visited 4 Branch Regions 3 Pre-discovered Areas 1 | . . . 1 . Known Exits Taken 1 | . 1 . . . Unknown Exits Taken 3 | 1 . 1 1 . Scrap Searched 2 | . . 1 . 1 Spaces Dug . | . . . . . Terrain Destroyed 43 | . . . . 43 Melee . | . . . . . Projectile . | . . . . . AOE 43 | . . . . 43 Terrain Rammed . | . . . . . Walls Destroyed . | . . . . . Machines Disabled . | . . . . . Actions | -11 -10 -10 -10 -9 --------- Run | Yrd Mat Min Exi Min Total 2231 | 78 640 683 612 218 Wait 523 | . 491 31 1 . Move 1630 | 58 140 623 608 201 Hop . | . . . . . Pick Up 17 | 8 1 6 1 1 Fast Attach 5 | 5 . . . . Attach 2 | 2 . . . . Detach . | . . . . . Swap 11 | . 1 6 1 3 Drop 8 | . . 7 1 . Fire 35 | 5 7 10 . 13 Melee . | . . . . . Ram . | . . . . . Kick . | . . . . . Crush . | . . . . . Escape Stasis . | . . . . . Rewire . | . . . . . Trap . | . . . . . Miscellaneous . | . . . . . Route ------- -11/Scrapyard -10/Materials (discovered 2 exits: *Min x2) -10/Mines (discovered 3 exits: [*Mat x2] / *Exi) -10/Exiles -9/Mines History --------- Turn | Location | Event 9 | -11/Scrapyard | Discovered new exit (range 16) 122 | -11/Scrapyard | Entered Materials 134 | -10/Materials | Identified exit to Mines 301 | -10/Materials | Build established: Mutant 861 | -10/Materials | Entered Mines 979 | -10/Mines | Found a Scrap Suit stashed away for nefarious purposes 983 | -10/Mines | Found Scrap Suit 1025 | -10/Mines | Learned location of 1 exit from Materials 1073 | -10/Mines | Found a damaged Exp. Sensor Array with a note attached 1076 | -10/Mines | Found Prototype Device 1180 | -10/Mines | Discovered new exit (range 5) 1563 | -10/Mines | Met a Derelict testing a Signal Generator 1615 | -10/Mines | Discovered new exit (range 6) 1928 | -10/Mines | Deemed a non-threat by the Exiles lab entrance 1929 | -10/Mines | Discovered new exit (range 5) 1937 | -10/Mines | Entered Exiles 1937 | -10/Exiles | Accompanied by 1 ally 1981 | -10/Exiles | Met 8R-AWN 2003 | -10/Exiles | Met EX-HEX 2096 | -10/Exiles | Met EX-DEC 2129 | -10/Exiles | Learned location of Zion (-6) 2213 | -10/Exiles | Discovered new exit (range 10) 2313 | -10/Exiles | Met EX-BIN 2349 | -10/Exiles | Aligned with FarCom system 2350 | -10/Exiles | Given EX-Vault access code 2736 | -10/Exiles | Opened EX-Vault 2745 | -10/Exiles | Found AWS/Gauss 2778 | -10/Exiles | Warned to stay clear of 0b10 Research branches 2802 | -10/Exiles | Exiles lab attacked by MAIN.C 2914 | -10/Exiles | Left Exiles lab with AWS/Gauss 2914 | -10/Exiles | Entered Mines 2914 | -9/Mines | Accompanied by 1 ally 3082 | -9/Mines | Learned location of 1 exit from Lower Caves 3216 | -9/Mines | Assembled infested the area 3272 | -9/Mines | Core integrity fell below 50% 3273 | -9/Mines | Self-destructed Last Messages --------------- 03257_ R-06 Scavenger collects Carbon-fiber Leg. 03259_ The unstable cave ceiling collapses. 03260_ U-05 Engineer lays Concrete. 03260_ R-06 Scavenger destroyed. 03261_ The unstable cave ceiling collapses. 03261_ U-05 Engineer lays Concrete. 03262_ Seismic Detector destroyed. 03262_ Imp. Ion Engine destroyed. 03262_ U-05 Engineer lays Concrete. 03263_ Destroyed Terrain Scanner. 03263_ U-05 Engineer destroyed. 03266_ D-53 Grenadier Shock Absorption System blasted off. 03266_ D-53 Grenadier knocked back. 03267_ The unstable cave ceiling collapses. 03267_ Lgt. Treads destroyed. 03268_ The unstable cave ceiling collapses. 03269_ Grenade Launcher destroyed. 03270_ The unstable cave ceiling collapses. 03273_ K-01 Serf destroyed. 03273_ Lgt. Treads destroyed. Map ----- +----------------------------------------------------+ | ?????????????????????????????????????????????????? | | ?????????????????????????????????????????????????? | | ?????????????????????????????????????????????????? | | ?????????????????????????????????????????????????? | | ?????????????????????????????????????????????????? | | ?????????????????????????????????????????????????? | | ???????????????????????? ??????????????????????? | | ?????????????????????? ??????????????????????? | | ?????????????????????? ??????????????????????? | | $?????????????????????? ??###??#??????????????? | | #????????????????????? ## # %??????????????? | | #?????????????###???## % ?????????????? | | #????????????# #??# ##????????????? | | ???????????? ### ##???????????? | | ##???????????? # t #???????????? | | ##????????????# % * # ##??????????? | | ###???????????# dd #??????????? | | ##???????????# #??????????? | | #####???????# # # #???????????? | | ## ##???????# ?????????????? | | # ###?????## #???????????????? | | ###??## ????????????????? | | ## #### ##????????????????? | | ?## ### ## #?????????????????? | | ?## #?#### ## #?????????????????? | | ## ##????## ##?# @ #?????????????????? | | # ##??????? ##?# #?????????????????? | | ###????????# #??# ##?????????????????? | | ##???????????##??## ##??????????????????? | | #?????????????????# # #???????????????????? | | ##????????????????## ####???????????????????? | | ##????????????????## ##??????????????????????? | | #?????????????????# ##???????????????????????? | | ##???????????????## z##????????????????????????? | | ##?????????????## #?????????????????????????? | | #????????????## #?????????????????????????? | | ##???????????# #?????????????????????????? | | #####??????## #?????????????????????????? | | ##?????# ##???????????####??????????? | | #?????# #######???####?## ##?????????? | | #?????## #?## ##?## ### #?????????? | | #??????# #?# ### ##????????? | | ##?????# #?# ##???????? | | ## #?????# #?# ##??????? | | #### ##????# #?## ### #??????? | | #??# #???## ##?#### ###### #??????? | | ##??## #??## #????# #?## """ ###????? | | ###???## #### #????# ## #?## """ ???? | | ##???### ## ##????# ## ### """ ? | | ????## ###?????# ## ## """ ######## ? | +----------------------------------------------------+ Best States ------------- Heat Dissipation 25 Energy Generation 12 Energy Capacity 265 Matter Stores 300 Matter Capacity 300 Sight Range 16 Terrain Scan Density 10 Evasion (%) 40 Recoil Reduction 2 Item Schematics ----------------- None Robot Schematics ------------------ None Fabricated ------------ Nothing Repaired ---------- Nothing Alien Tech Used ----------------- None Achievements -------------- None Challenges ------------ None Game ------ Seed FieldthrustCloakCalibrator Manual? 0 Play Time 00:28:15 Cumulative 24.9 hours Start 2025.05.11 @ 20:16:14 End 2025.05.12 @ 17:03:44 Sessions 3 Manual Loads 0 Difficulty Rogue Special Mode None Game No. 37 Rogue 37 Adventurer 0 Explorer 0 Win Type - Total 0 Types 0/0/0/0/0/0/0/0/0/0 Lore% 20 Gallery% 25 Achievement% 20 Wizard Run 0 Options --------- Layout 0 ASCII 0 Keyboard 1 Movement Numpad Keybinds 0 Fullscreen 2 Font 24/Smallcaps Map View 76x50 Zoom Use 0% Tactical HUD 1 Map Filters NONE Filters NONE Steam 1 RUN: 8924999f-8a21-4fdf-ad9f-3b05590cfee9